fUST/lending_fUST_20250419
["ID","MTS","AMOUNT","RATE_DAILY","PERIOD"]
[358383388,1745038238913,-335.46903703,0.00021917,2]
[358383390,1745038238922,-500.0,0.00021917,2]
[358383392,1745038238931,-524.12,0.00021917,2]
[358383394,1745038238940,-500.0,0.00021917,2]
[358383395,1745038238950,-500.0,0.00021917,2]
[358383396,1745038238959,-151.0,0.00021917,2]
[358383397,1745038238969,-151.0,0.00021917,2]
[358383398,1745038238978,-151.0,0.00021917,2]
[358383399,1745038238987,-151.0,0.00021917,2]
[358383400,1745038238996,-151.0,0.00021917,2]
[358383401,1745038239006,-428.74147739,0.00021917,2]
[358383402,1745038239015,-500.0,0.00021917,2]
[358383403,1745038239024,-500.0,0.00021917,2]
[358383404,1745038239033,-500.0,0.00021917,2]
[358383405,1745038239042,-500.0,0.00021917,2]
[358383406,1745038239051,-151.0,0.00021917,2]
[358383407,1745038239060,-151.0,0.00021917,2]
[358383408,1745038239070,-151.0,0.00021917,2]
[358383409,1745038239079,-151.0,0.00021917,2]
[358383410,1745038239088,-151.0,0.00021917,2]
[358383411,1745038239098,-500.0,0.00021917,2]
[358383412,1745038239109,-151.0,0.00021917,2]
[358383414,1745038239121,-151.0,0.00021917,2]
[358383416,1745038239130,-500.0,0.00021917,2]
[358383418,1745038239140,-500.0,0.00021917,2]
[358383419,1745038239149,-500.0,0.00021917,2]
[358383421,1745038239158,-2191.19,0.00021917,2]
[358383423,1745038239167,-290.049313,0.00021917,2]
[358383425,1745038239177,-500.0,0.00021917,2]
[358383427,1745038239186,-1000.0,0.00021917,2]
[358383429,1745038239196,-1000.0,0.00021917,2]
[358383431,1745038239205,-1000.0,0.00021917,2]
[358383433,1745038239214,-1000.0,0.00021917,2]
[358383435,1745038239223,-1000.0,0.00021917,2]
[358383437,1745038239232,-1000.0,0.00021917,2]
[358383439,1745038239241,-1000.0,0.00021917,2]
[358383441,1745038239251,-1000.0,0.00021917,2]
[358383443,1745038239260,-1000.0,0.00021917,2]
[358383445,1745038239269,-1000.0,0.00021917,2]
[358383447,1745038239278,-1000.0,0.00021917,2]
[358383449,1745038239288,-1000.0,0.00021917,2]
[358383451,1745038239297,-216.95011621,0.00021917,2]
[358383452,1745038239523,-185.66964383,0.00021916,2]
[358383453,1745038239533,-926.17468584,0.00021917,2]
[358383454,1745038239542,-282.278885,0.00021917,2]
[358383455,1745038239552,-282.278885,0.00021917,2]
[358383456,1745038239561,-282.278885,0.00021917,2]
[358383457,1745038239570,-282.278885,0.00021917,2]
[358383458,1745038239580,-747.66,0.00021917,2]
[358383459,1745038239589,-282.278885,0.00021917,2]
[358383460,1745038239599,-282.278885,0.00021917,2]
[358383461,1745038239608,-282.278885,0.00021917,2]
[358383462,1745038239618,-282.278885,0.00021917,2]
[358383463,1745038239628,-282.278885,0.00021917,2]
[358383464,1745038239637,-282.278885,0.00021917,2]
[358383465,1745038239647,-501.98381481,0.00021917,2]
[358383466,1745038239656,-282.278885,0.00021917,2]
[358383467,1745038239666,-282.278885,0.00021917,2]
[358383468,1745038239676,-500.0,0.00021917,2]
[358383469,1745038239686,-500.0,0.00021917,2]
[358383470,1745038239695,-500.0,0.00021917,2]
[358383471,1745038239704,-500.0,0.00021917,2]
[358383472,1745038239714,-846.78,0.00021917,2]
[358383473,1745038239723,-500.0,0.00021917,2]
[358383474,1745038239733,-500.0,0.00021917,2]
[358383475,1745038239742,-538.89,0.00021917,2]
[358383476,1745038239752,-501.11495624,0.00021917,2]
[358383477,1745038239762,-500.0,0.00021917,2]
[358383478,1745038239772,-500.0,0.00021917,2]
[358383479,1745038239782,-500.0,0.00021917,2]
[358383480,1745038239792,-187.08867832,0.00021917,2]
[358383481,1745038239802,-500.0,0.00021917,2]
[358383482,1745038239811,-504.67753289,0.00021917,2]
[358383483,1745038239821,-500.0,0.00021917,2]
[358383484,1745038239831,-500.0,0.00021917,2]
[358383485,1745038239840,-580.55,0.00021917,2]
[358383486,1745038239850,-500.0,0.00021917,2]
[358383487,1745038239860,-500.0,0.00021917,2]
[358383488,1745038239870,-500.0,0.00021917,2]
[358383489,1745038239880,-500.0,0.00021917,2]
[358383490,1745038239891,-500.0,0.00021917,2]
[358383491,1745038239901,-506.99304595,0.00021917,2]
[358383492,1745038239912,-549.53,0.00021917,2]
[358383493,1745038239924,-500.0,0.00021917,2]
[358383494,1745038239935,-500.0,0.00021917,2]
[358383495,1745038239948,-151.0,0.00021917,2]
[358383496,1745038239960,-500.0,0.00021917,2]
[358383497,1745038239970,-151.0,0.00021917,2]
[358383498,1745038239980,-151.0,0.00021917,2]
[358383499,1745038239991,-500.0,0.00021917,2]
[358383500,1745038240003,-151.0,0.00021917,2]
[358383501,1745038240013,-151.0,0.00021917,2]
[358383502,1745038240023,-151.0,0.00021917,2]
[358383503,1745038240033,-650.4,0.00021917,2]
[358383504,1745038240043,-500.0,0.00021917,2]
[358383505,1745038240052,-500.0,0.00021917,2]
[358383506,1745038240062,-500.0,0.00021917,2]
[358383507,1745038240072,-534.77,0.00021917,2]
[358383508,1745038240083,-926.78,0.00021917,2]
[358383509,1745038240095,-505.66851989,0.00021917,2]
[358383510,1745038240106,-1210.03,0.00021917,2]
[358383511,1745038240117,-507.47265121,0.00021917,2]
[358383512,1745038240127,-500.0,0.00021917,2]
[358383513,1745038240137,-500.0,0.00021917,2]
[358383514,1745038240148,-500.0,0.00021917,2]
[358383515,1745038240158,-2977.11,0.00021917,2]
[358383516,1745038240168,-518.28,0.00021917,2]
[358383517,1745038240177,-565.28,0.00021917,2]
[358383518,1745038240187,-500.0,0.00021917,2]
[358383519,1745038240197,-989.76,0.00021917,2]
[358383520,1745038240206,-1131.7,0.00021917,2]
[358383521,1745038240216,-500.0,0.00021917,2]
[358383522,1745038240225,-500.0,0.00021917,2]
[358383524,1745038240235,-500.0,0.00021917,2]
[358383525,1745038240244,-511.63285397,0.00021917,2]
[358383526,1745038240254,-151.0,0.00021917,2]
[358383527,1745038240263,-151.0,0.00021917,2]
[358383528,1745038240272,-151.0,0.00021917,2]
[358383529,1745038240282,-151.0,0.00021917,2]
[358383530,1745038240291,-743.62,0.00021917,2]
[358383531,1745038240300,-151.0,0.00021917,2]
[358383532,1745038240310,-500.0,0.00021917,2]
[358383533,1745038240321,-500.0,0.00021917,2]
[358383534,1745038240332,-500.0,0.00021917,2]
[358383535,1745038240343,-500.0,0.00021917,2]
[358383536,1745038240483,-500.0,0.00021917,2]
[358383537,1745038240495,-500.0,0.00021917,2]
[358383538,1745038240506,-500.0,0.00021917,2]
[358383539,1745038240516,-783.91,0.00021917,2]
[358383540,1745038240527,-500.0,0.00021917,2]
[358383541,1745038240539,-509.1615999,0.00021917,2]
[358383542,1745038240549,-500.0,0.00021917,2]
[358383543,1745038240560,-500.0,0.00021917,2]
[358383544,1745038240570,-505.90755219,0.00021917,2]
[358383545,1745038240580,-890.37,0.00021917,2]
[358383546,1745038240590,-504.28630936,0.00021917,2]
[358383547,1745038240600,-505.05087994,0.00021917,2]
[358383548,1745038240610,-500.0,0.00021917,2]
[358383549,1745038240620,-591.14,0.00021917,2]
[358383550,1745038240629,-500.0,0.00021917,2]
[358383551,1745038240639,-514.31244637,0.00021917,2]
[358383552,1745038240649,-506.34012133,0.00021917,2]
[358383553,1745038240659,-502.97632852,0.00021917,2]
[358383554,1745038240668,-898.56,0.00021917,2]
[358383555,1745038240678,-243.0912456,0.00021917,2]
[358383556,1745038240688,-500.0,0.00021917,2]
[358383558,1745038240698,-611.92,0.00021917,2]
[358383560,1745038240707,-505.28022094,0.00021917,2]
[358383562,1745038240717,-500.0,0.00021917,2]
[358383564,1745038240726,-642.16,0.00021917,2]
[358383565,1745038240736,-500.0,0.00021917,2]
[358383568,1745038240746,-647.23,0.00021917,2]
[358383569,1745038240755,-500.0,0.00021917,2]
[358383571,1745038240764,-500.0,0.00021917,2]
[358383574,1745038240774,-1002.26,0.00021917,2]
[358383576,1745038240784,-500.0,0.00021917,2]
[358383578,1745038240794,-500.0,0.00021917,2]
[358383580,1745038240804,-500.0,0.00021917,2]
[358383582,1745038240813,-608.82,0.00021917,2]
[358383584,1745038240823,-701.81,0.00021917,2]
[358383586,1745038240832,-500.0,0.00021917,2]
[358383588,1745038240842,-500.0,0.00021917,2]
[358383589,1745038240852,-605.345336,0.00021917,2]
[358383590,1745038240862,-605.345336,0.00021917,2]
[358383591,1745038240872,-605.345336,0.00021917,2]
[358383592,1745038240881,-605.345336,0.00021917,2]
[358383593,1745038240890,-605.345336,0.00021917,2]
[358383594,1745038240900,-605.345336,0.00021917,2]
[358383595,1745038240909,-500.0,0.00021917,2]
[358383596,1745038240919,-605.345336,0.00021917,2]
[358383597,1745038240928,-503.78712486,0.00021917,2]
[358383598,1745038240938,-605.345336,0.00021917,2]
[358383599,1745038240947,-112.72127388,0.00021917,2]
[358383617,1745038301341,967.28912258,0.00017939,2]
[358383658,1745039431677,-159.76475052,0.000189,2]
[358383659,1745039431687,-300.0,0.00020675,2]
[358383660,1745039431697,-300.0,0.00020676,2]
[358383661,1745039431706,-500.0,0.00020676,2]
[358383662,1745039431716,-250.13761952,0.00020676,2]
[358383663,1745039431733,-249.86238048,0.00020676,2]
[358383664,1745039431742,-500.0,0.00020676,2]
[358383665,1745039431751,-500.0,0.00020676,2]
[358383666,1745039431761,-500.0,0.00020676,2]
[358383667,1745039431770,-500.0,0.00020676,2]
[358383668,1745039431779,-500.0,0.00020676,2]
[358383669,1745039431788,-443.92565366,0.00020676,2]
[358383670,1745039431798,-24900.0,0.00020677,2]
[358383672,1745039431807,-229.8396285,0.00020868,2]
[358383674,1745039431818,-600.27,0.00021,2]
[358383676,1745039431827,-3077.71799497,0.00021,2]
[358383678,1745039431837,-12559.7366029,0.00021405,2]
[358383680,1745039431847,-160.0,0.00021677,2]
[358383682,1745039431856,-420.4931809,0.00021798,2]
[358383685,1745039431866,-160.0,0.00021799,2]
[358383687,1745039431875,-160.0,0.000218,2]
[358383689,1745039431885,-1723.35793504,0.00021817,2]
[358383717,1745039437776,-10808.52905701,0.00021817,2]
[358383719,1745039437786,-160.0,0.00021863,2]
[358383721,1745039437796,-839.40992179,0.00021894,2]
[358383723,1745039437806,-200.0,0.000219,2]
[358383725,1745039437815,-316.4905352,0.000219,2]
[358383727,1745039437825,-1204.0,0.000219,2]
[358383729,1745039437834,-1000.0,0.000219,2]
[358383731,1745039437844,-1000.0,0.000219,2]
[358383733,1745039437854,-1012.47451194,0.000219,3]
[358383735,1745039437864,-207.4,0.00021904,2]
[358383737,1745039437873,-839.40992179,0.00021917,3]
[358383740,1745039437883,-47589.87441232,0.00021917,2]
[358383742,1745039437892,-9167.06817031,0.00021917,3]
[358383744,1745039437901,-151.0,0.00021917,2]
[358383745,1745039437910,-151.0,0.00021917,2]
[358383748,1745039437920,-151.0,0.00021917,2]
[358383750,1745039437930,-151.0,0.00021917,2]
[358383752,1745039437939,-151.0,0.00021917,2]
[358383754,1745039437949,-151.0,0.00021917,2]
[358383756,1745039437958,-151.0,0.00021917,2]
[358383758,1745039437969,-201.81861,0.00021917,2]
[358383760,1745039437979,-500.0,0.00021917,2]
[358383763,1745039437989,-500.0,0.00021917,2]
[358383765,1745039437999,-413.51876716,0.00021917,2]
[358383766,1745039438009,-502.29,0.00021917,2]
[358383768,1745039438019,-500.0,0.00021917,2]
[358383769,1745039438028,-506.81748292,0.00021917,2]
[358383770,1745039438037,-500.0,0.00021917,2]
[358383771,1745039438046,-509.97530507,0.00021917,2]
[358383772,1745039438056,-502.43151293,0.00021917,2]
[358383773,1745039438066,-500.0,0.00021917,2]
[358383774,1745039438075,-501.87645344,0.00021917,2]
[358383775,1745039438085,-502.16676185,0.00021917,2]
[358383776,1745039438094,-500.0,0.00021917,2]
[358383777,1745039438104,-507.66807764,0.00021917,2]
[358383778,1745039438113,-556.36,0.00021917,2]
[358383779,1745039438123,-500.0,0.00021917,2]
[358383780,1745039438132,-526.64,0.00021917,2]
[358383781,1745039438142,-500.0,0.00021917,2]
[358383782,1745039438151,-500.0,0.00021917,2]
[358383783,1745039438161,-500.0,0.00021917,2]
[358383784,1745039438171,-500.0,0.00021917,2]
[358383785,1745039438180,-1159.61,0.00021917,2]
[358383786,1745039438189,-500.0,0.00021917,2]
[358383787,1745039438199,-623.3,0.00021917,2]
[358383788,1745039438209,-541.73,0.00021917,2]
[358383789,1745039438219,-500.0,0.00021917,2]
[358383790,1745039438233,-500.0,0.00021917,2]
[358383791,1745039438242,-151.0,0.00021917,2]
[358383792,1745039438252,-151.0,0.00021917,2]
[358383793,1745039438262,-151.0,0.00021917,2]
[358383794,1745039438272,-151.0,0.00021917,2]
[358383795,1745039438281,-500.0,0.00021917,2]
[358383796,1745039438291,-506.55781872,0.00021917,2]
[358383797,1745039438301,-500.0,0.00021917,2]
[358383799,1745039438310,-500.0,0.00021917,2]
[358383800,1745039438320,-500.0,0.00021917,2]
[358383801,1745039438329,-500.0,0.00021917,2]
[358383802,1745039438339,-502.38951308,0.00021917,2]
[358383803,1745039438349,-425.49245537,0.00021917,2]
[358383804,1745039438359,-500.0,0.00021917,2]
[358383805,1745039438369,-500.0,0.00021917,2]
[358383806,1745039438379,-500.0,0.00021917,2]
[358383807,1745039438388,-500.0,0.00021917,2]
[358383808,1745039438397,-861.12,0.00021917,2]
[358383809,1745039438407,-500.0,0.00021917,2]
[358383810,1745039438417,-292.660697,0.00021917,2]
[358383811,1745039438427,-292.660697,0.00021917,2]
[358383812,1745039438436,-292.660697,0.00021917,2]
[358383813,1745039438445,-292.660697,0.00021917,2]
[358383814,1745039438455,-292.660697,0.00021917,2]
[358383815,1745039438464,-292.660697,0.00021917,2]
[358383816,1745039438474,-292.660697,0.00021917,2]
[358383817,1745039438483,-292.660697,0.00021917,2]
[358383818,1745039438492,-292.660697,0.00021917,2]
[358383819,1745039438502,-292.660697,0.00021917,2]
[358383820,1745039438511,-500.0,0.00021917,2]
[358383821,1745039438520,-500.0,0.00021917,2]
[358383822,1745039438530,-523.17,0.00021917,2]
[358383823,1745039438540,-500.0,0.00021917,2]
[358383824,1745039438549,-500.0,0.00021917,2]
[358383825,1745039438559,-500.0,0.00021917,2]
[358383826,1745039438569,-500.0,0.00021917,2]
[358383827,1745039438578,-500.0,0.00021917,2]
[358383828,1745039438588,-500.0,0.00021917,2]
[358383829,1745039438598,-647.69789697,0.00021917,2]
[358383830,1745039438610,-500.0,0.00021917,2]
[358383831,1745039438622,-500.0,0.00021917,2]
[358383832,1745039438633,-500.0,0.00021917,2]
[358383833,1745039438643,-500.0,0.00021917,2]
[358383834,1745039438654,-500.0,0.00021917,2]
[358383835,1745039438665,-787.49,0.00021917,2]
[358383836,1745039438676,-500.0,0.00021917,2]
[358383837,1745039438686,-823.76,0.00021917,2]
[358383838,1745039438695,-500.0,0.00021917,2]
[358383839,1745039438705,-984.12,0.00021917,2]
[358383840,1745039438716,-500.0,0.00021917,2]
[358383841,1745039438726,-500.0,0.00021917,2]
[358383842,1745039438735,-499.38278785,0.00021917,2]
[358383843,1745039438744,-500.0,0.00021917,2]
[358383844,1745039438754,-500.0,0.00021917,2]
[358383845,1745039438763,-500.0,0.00021917,2]
[358383846,1745039438773,-500.0,0.00021917,2]
[358383847,1745039438782,-500.0,0.00021917,2]
[358383848,1745039438792,-864.82,0.00021917,2]
[358383849,1745039438801,-500.0,0.00021917,2]
[358383850,1745039438810,-1399.92,0.00021917,2]
[358383851,1745039438819,-500.0,0.00021917,2]
[358383852,1745039438829,-811.5,0.00021917,2]
[358383853,1745039438841,-716.51,0.00021917,2]
[358383854,1745039438852,-500.0,0.00021917,2]
[358383855,1745039438862,-151.0,0.00021917,2]
[358383856,1745039438872,-500.0,0.00021917,2]
[358383857,1745039438881,-151.0,0.00021917,2]
[358383858,1745039438891,-151.0,0.00021917,2]
[358383859,1745039438902,-151.0,0.00021917,2]
[358383860,1745039438913,-151.0,0.00021917,2]
[358383861,1745039438922,-151.0,0.00021917,2]
[358383862,1745039438933,-151.0,0.00021917,2]
[358383863,1745039438943,-151.0,0.00021917,2]
[358383864,1745039438952,-500.0,0.00021917,2]
[358383865,1745039438962,-151.0,0.00021917,2]
[358383866,1745039438972,-151.0,0.00021917,2]
[358383867,1745039438981,-295.231078,0.00021917,2]
[358383868,1745039438991,-500.0,0.00021917,2]
[358383869,1745039439001,-500.0,0.00021917,2]
[358383870,1745039439011,-516.44,0.00021917,2]
[358383871,1745039439021,-500.0,0.00021917,2]
[358383872,1745039439031,-500.0,0.00021917,2]
[358383873,1745039439041,-500.0,0.00021917,2]
[358383874,1745039439051,-500.0,0.00021917,2]
[358383875,1745039439060,-500.0,0.00021917,2]
[358383876,1745039439070,-500.0,0.00021917,2]
[358383877,1745039439080,-500.0,0.00021917,2]
[358383878,1745039439089,-550.78,0.00021917,2]
[358383879,1745039439099,-500.0,0.00021917,2]
[358383880,1745039439109,-500.0,0.00021917,2]
[358383881,1745039439118,-500.0,0.00021917,2]
[358383882,1745039439128,-888.16,0.00021917,2]
[358383883,1745039439138,-500.0,0.00021917,2]
[358383884,1745039439147,-500.0,0.00021917,2]
[358383885,1745039439157,-500.0,0.00021917,2]
[358383886,1745039439166,-296.76992231,0.00021917,2]
[358383887,1745039439175,-512.48,0.00021917,2]
[358383888,1745039439185,-500.0,0.00021917,2]
[358383889,1745039439195,-500.0,0.00021917,2]
[358383891,1745039439205,-500.82,0.00021917,2]
[358383893,1745039439215,-500.0,0.00021917,2]
[358383894,1745039439225,-795.06,0.00021917,2]
[358383895,1745039439238,-565.0,0.00021917,2]
[358383896,1745039439247,-862.984922,0.00021917,2]
[358383897,1745039439257,-862.984922,0.00021917,2]
[358383898,1745039439268,-510.3879617,0.00021917,2]
[358383899,1745039439277,-862.984922,0.00021917,2]
[358383900,1745039439287,-862.984922,0.00021917,2]
[358383901,1745039439297,-862.984922,0.00021917,2]
[358383902,1745039439307,-500.0,0.00021917,2]
[358383903,1745039439317,-1084.55,0.00021917,2]
[358383904,1745039439327,-862.984922,0.00021917,2]
[358383906,1745039439336,-511.47969853,0.00021917,2]
[358383907,1745039439352,-351.50522347,0.00021917,2]
[358383909,1745039439362,-862.984922,0.00021917,2]
[358383910,1745039439372,-862.984922,0.00021917,2]
[358383911,1745039439381,-862.984922,0.00021917,2]
[358383912,1745039439391,-500.0,0.00021917,2]
[358383913,1745039439401,-500.0,0.00021917,2]
[358383914,1745039439410,-2853.06,0.00021917,2]
[358383917,1745039439420,-222.96263,0.00021917,2]
[358383918,1745039439429,-500.0,0.00021917,2]
[358383919,1745039439438,-712.64,0.00021917,2]
[358383920,1745039439598,-500.0,0.00021917,2]
[358383921,1745039439608,-397.35443853,0.00021917,2]
[358383922,1745039439618,-500.0,0.00021917,2]
[358383923,1745039439627,-500.0,0.00021917,2]
[358383924,1745039439636,-510.42,0.00021917,2]
[358383925,1745039439646,-500.0,0.00021917,2]
[358383926,1745039439655,-151.0,0.00021917,2]
[358383927,1745039439666,-151.0,0.00021917,2]
[358383928,1745039439676,-151.0,0.00021917,2]
[358383929,1745039439685,-506.35085051,0.00021917,2]
[358383930,1745039439695,-502.79799715,0.00021917,2]
[358383931,1745039439704,-555.93,0.00021917,2]
[358383933,1745039439713,-500.0,0.00021917,2]
[358383935,1745039439723,-1517.332164,0.00021917,2]
[358383937,1745039439732,-1517.332164,0.00021917,2]
[358383939,1745039439741,-1517.332164,0.00021917,2]
[358383941,1745039439751,-1517.332164,0.00021917,2]
[358383943,1745039439761,-566.51,0.00021917,2]
[358383945,1745039439772,-1517.332164,0.00021917,2]
[358383947,1745039439781,-1517.332164,0.00021917,2]
[358383949,1745039439791,-500.0,0.00021917,2]
[358383951,1745039439800,-1517.332164,0.00021917,2]
[358383953,1745039439811,-1517.332164,0.00021917,2]
[358383955,1745039439820,-1517.332164,0.00021917,2]
[358383957,1745039439829,-1517.332164,0.00021917,2]
[358383959,1745039439838,-1517.332164,0.00021917,2]
[358383961,1745039439848,-1517.332164,0.00021917,2]
[358383963,1745039439858,-500.0,0.00021917,2]
[358383965,1745039439867,-751.25,0.00021917,2]
[358383967,1745039439876,-615.41,0.00021917,2]
[358383969,1745039439885,-500.0,0.00021917,2]
[358383971,1745039439895,-586.42,0.00021917,2]
[358383972,1745039439905,-960.5,0.00021917,2]
[358383974,1745039439914,-853.27,0.00021917,2]
[358383977,1745039439924,-500.0,0.00021917,2]
[358383979,1745039439934,-620.26,0.00021917,2]
[358383980,1745039439945,-500.0,0.00021917,2]
[358383983,1745039439956,-500.0,0.00021917,2]
[358383985,1745039439967,-500.0,0.00021917,2]
[358383986,1745039439978,-500.0,0.00021917,2]
[358383989,1745039439988,-500.0,0.00021917,2]
[358383991,1745039439998,-500.0,0.00021917,2]
[358383992,1745039440008,-149.08053362,0.00021917,2]
[358383995,1745039440021,-523.47946638,0.00021917,2]
[358383997,1745039440031,-151.0,0.00021917,2]
[358383999,1745039440040,-500.0,0.00021917,2]
[358384000,1745039440049,-151.0,0.00021917,2]
[358384001,1745039440058,-151.0,0.00021917,2]
[358384002,1745039440067,-151.0,0.00021917,2]
[358384003,1745039440076,-151.0,0.00021917,2]
[358384004,1745039440085,-151.0,0.00021917,2]
[358384005,1745039440095,-505.2679877,0.00021917,2]
[358384006,1745039440104,-500.0,0.00021917,2]
[358384007,1745039440114,-500.0,0.00021917,2]
[358384008,1745039440123,-500.0,0.00021917,2]
[358384009,1745039440132,-500.0,0.00021917,2]
[358384010,1745039440141,-500.0,0.00021917,2]
[358384011,1745039440150,-500.0,0.00021917,2]
[358384012,1745039440159,-500.0,0.00021917,2]
[358384013,1745039440168,-500.0,0.00021917,2]
[358384014,1745039440177,-500.0,0.00021917,2]
[358384015,1745039440186,-381.67314836,0.00021917,2]
[358384016,1745039440195,-525.64,0.00021917,2]
[358384017,1745039440204,-500.0,0.00021917,2]
[358384018,1745039440213,-500.0,0.00021917,2]
[358384019,1745039440222,-670.7,0.00021917,2]
[358384020,1745039440234,-500.0,0.00021917,2]
[358384022,1745039440243,-500.0,0.00021917,2]
[358384023,1745039440253,-500.0,0.00021917,2]
[358384026,1745039440262,-620.51396564,0.00021917,2]
[358384028,1745039440271,-500.0,0.00021917,2]
[358384030,1745039440281,-151.0,0.00021917,2]
[358384031,1745039440290,-500.0,0.00021917,2]
[358384034,1745039440299,-151.0,0.00021917,2]
[358384036,1745039440308,-151.0,0.00021917,2]
[358384037,1745039440318,-500.0,0.00021917,2]
[358384040,1745039440327,-151.0,0.00021917,2]
[358384041,1745039440337,-151.0,0.00021917,2]
[358384043,1745039440346,-151.0,0.00021917,2]
[358384045,1745039440355,-500.0,0.00021917,2]
[358384048,1745039440364,-151.0,0.00021917,2]
[358384050,1745039440374,-151.0,0.00021917,2]
[358384051,1745039440383,-301.22438,0.00021917,2]
[358384054,1745039440393,-500.0,0.00021917,2]
[358384055,1745039440402,-151.0,0.00021917,2]
[358384058,1745039440412,-151.0,0.00021917,2]
[358384060,1745039440424,-151.0,0.00021917,2]
[358384062,1745039440435,-500.0,0.00021917,2]
[358384064,1745039440444,-151.0,0.00021917,2]
[358384066,1745039440453,-151.0,0.00021917,2]
[358384068,1745039440463,-151.0,0.00021917,2]
[358384070,1745039440473,-500.0,0.00021917,2]
[358384072,1745039440483,-151.0,0.00021917,2]
[358384074,1745039440492,-500.0,0.00021917,2]
[358384076,1745039440501,-151.0,0.00021917,2]
[358384078,1745039440511,-151.0,0.00021917,2]
[358384080,1745039440520,-257.598292,0.00021917,2]
[358384082,1745039440529,-900.38,0.00021917,2]
[358384084,1745039440538,-500.0,0.00021917,2]
[358384086,1745039440548,-500.0,0.00021917,2]
[358384088,1745039440557,-435.51740479,0.00021917,2]
[358384090,1745039440567,-503.5414741,0.00021917,2]
[358384092,1745039440576,-500.0,0.00021917,2]
[358384094,1745039440586,-500.0,0.00021917,2]
[358384096,1745039440595,-500.0,0.00021917,2]
[358384098,1745039440604,-503.16906715,0.00021917,2]
[358384100,1745039440614,-925.92,0.00021917,2]
[358384102,1745039440623,-792.14,0.00021917,2]
[358384104,1745039440633,-1193.46,0.00021917,2]
[358384106,1745039440642,-2083.21,0.00021917,2]
[358384108,1745039440652,-500.0,0.00021917,2]
[358384110,1745039440662,-2083.21,0.00021917,2]
[358384112,1745039440671,-2083.21,0.00021917,2]
[358384114,1745039440681,-2083.21,0.00021917,2]
[358384116,1745039440690,-2083.21,0.00021917,2]
[358384118,1745039440700,-2083.21,0.00021917,2]
[358384120,1745039440710,-2083.21,0.00021917,2]
[358384122,1745039440719,-2083.21,0.00021917,2]
[358384124,1745039440729,-2083.21,0.00021917,2]
[358384126,1745039440738,-2083.21,0.00021917,2]
[358384128,1745039440747,-500.0,0.00021917,2]
[358384130,1745039440756,-2083.21,0.00021917,2]
[358384132,1745039440766,-2083.21,0.00021917,2]
[358384134,1745039440775,-500.0,0.00021917,2]
[358384136,1745039440785,-2083.21,0.00021917,2]
[358384138,1745039440794,-500.0,0.00021917,2]
[358384140,1745039440803,-2083.21,0.00021917,2]
[358384142,1745039440812,-2083.21,0.00021917,2]
[358384144,1745039440821,-2083.21,0.00021917,2]
[358384146,1745039440830,-2083.21,0.00021917,2]
[358384148,1745039440839,-500.0,0.00021917,2]
[358384151,1745039440849,-500.0,0.00021917,2]
[358384152,1745039440858,-1301.11,0.00021917,2]
[358384155,1745039440867,-500.0,0.00021917,2]